fUSD/lending_fUSD_20250213
["ID","MTS","AMOUNT","RATE_DAILY","PERIOD"]
[352993818,1739477454848,-500.0,0.00013863,2]
[352993819,1739477454858,-500.0,0.00013863,2]
[352993820,1739477454930,-1343.11,0.00013863,2]
[352993821,1739477454940,-500.0,0.00013863,2]
[352993822,1739477454949,-500.0,0.00013863,2]
[352993823,1739477454958,-746.48,0.00013863,2]
[352993824,1739477454967,-969.62,0.00013863,2]
[352993825,1739477454976,-873.81,0.00013863,2]
[352993826,1739477454986,-500.0,0.00013863,2]
[352993827,1739477454996,-574.85,0.00013863,2]
[352993828,1739477455006,-734.86,0.00013863,2]
[352993829,1739477455016,-500.0,0.00013863,2]
[352993830,1739477455026,-561.17,0.00013863,2]
[352993831,1739477455038,-1019.12,0.00013863,2]
[352993832,1739477455047,-588.85,0.00013863,2]
[352993833,1739477455058,-500.0,0.00013863,2]
[352993834,1739477455068,-500.0,0.00013863,2]
[352993835,1739477455078,-1574.22,0.00013863,2]
[352993836,1739477455088,-418.32266384,0.00013863,2]
[352993837,1739477455098,-500.0,0.00013863,2]
[352993838,1739477455109,-2849.29,0.00013863,2]
[352993839,1739477455118,-1220.5,0.00013863,2]
[352993840,1739477455127,-3443.53,0.00013863,2]
[352993841,1739477455136,-500.0,0.00013863,2]
[352993842,1739477455149,-1030.8,0.00013863,2]
[352993843,1739477455159,-2659.26,0.00013863,2]
[352993844,1739477455168,-1417.83,0.00013863,2]
[352993845,1739477455178,-726.33,0.00013863,2]
[352993846,1739477455188,-506.21709792,0.00013863,2]
[352993847,1739477455198,-500.0,0.00013863,2]
[352993848,1739477455207,-993.83,0.00013863,2]
[352993849,1739477455217,-500.0,0.00013863,2]
[352993850,1739477455226,-538.11,0.00013863,2]
[352993851,1739477455236,-897.65,0.00013863,2]
[352993852,1739477455245,-1977.47,0.00013863,2]
[352993853,1739477455255,-500.0,0.00013863,2]
[352993854,1739477455265,-500.0,0.00013863,2]
[352993855,1739477455276,-500.0,0.00013863,2]
[352993856,1739477455286,-500.0,0.00013863,2]
[352993857,1739477455296,-1272.35,0.00013863,2]
[352993858,1739477455306,-500.0,0.00013863,2]
[352993859,1739477455316,-500.0,0.00013863,2]
[352993860,1739477455325,-500.0,0.00013863,2]
[352993861,1739477455335,-2097.01,0.00013863,2]
[352993862,1739477455345,-1567.56,0.00013863,2]
[352993863,1739477455354,-806.8,0.00013863,2]
[352993864,1739477455365,-2550.36,0.00013863,2]
[352993865,1739477455374,-2585.04,0.00013863,2]
[352993866,1739477455384,-1155.51,0.00013863,2]
[352993867,1739477455394,-500.0,0.00013863,2]
[352993868,1739477455403,-500.0,0.00013863,2]
[352993869,1739477455412,-910.68,0.00013863,2]
[352993870,1739477455422,-765.3,0.00013863,2]
[352993871,1739477455431,-2625.1,0.00013863,2]
[352993872,1739477455441,-1575.61,0.00013863,2]
[352993873,1739477455450,-763.29,0.00013863,2]
[352993874,1739477455459,-500.0,0.00013863,2]
[352993875,1739477455469,-610.49,0.00013863,2]
[352993876,1739477455478,-500.0,0.00013863,2]
[352993877,1739477455487,-500.0,0.00013863,2]
[352993878,1739477455496,-2200.66,0.00013863,2]
[352993879,1739477455506,-543.98,0.00013863,2]
[352993880,1739477455515,-1964.49,0.00013863,2]
[352993881,1739477455525,-760.93,0.00013863,2]
[352993882,1739477455534,-500.0,0.00013863,2]
[352993883,1739477455543,-538.48858855,0.00013863,2]
[352993884,1739477455552,-2962.35,0.00013863,2]
[352993885,1739477455562,-500.0,0.00013863,2]
[352993886,1739477455571,-2096.06,0.00013863,2]
[352993887,1739477455581,-500.0,0.00013863,2]
[352993888,1739477455590,-737.25,0.00013863,2]
[352993889,1739477455600,-500.0,0.00013863,2]
[352993890,1739477455609,-1213.32,0.00013863,2]
[352993891,1739477455618,-742.17,0.00013863,2]
[352993892,1739477455628,-757.23,0.00013863,2]
[352993893,1739477455637,-558.99,0.00013863,2]
[352993894,1739477455647,-513.83,0.00013863,2]
[352993895,1739477455656,-1606.2,0.00013863,2]
[352993896,1739477455667,-750.01,0.00013863,2]
[352993897,1739477455676,-1862.56,0.00013863,2]
[352993898,1739477455686,-1936.34,0.00013863,2]
[352993899,1739477455696,-500.0,0.00013863,2]
[352993900,1739477455706,-1550.37,0.00013863,2]
[352993901,1739477455715,-796.15,0.00013863,2]
[352993902,1739477455726,-500.0,0.00013863,2]
[352993903,1739477455738,-1562.73,0.00013863,2]
[352993904,1739477455748,-4136.74,0.00013863,2]
[352993905,1739477455757,-725.64,0.00013863,2]
[352993906,1739477455767,-1103.08,0.00013863,2]
[352993907,1739477455777,-500.0,0.00013863,2]
[352993908,1739477455788,-2085.42,0.00013863,2]
[352993909,1739477455799,-1334.71,0.00013863,2]
[352993910,1739477455810,-601.03,0.00013863,2]
[352993911,1739477455821,-5221.61,0.00013863,2]
[352993912,1739477455831,-500.0,0.00013863,2]
[352993913,1739477455840,-500.0,0.00013863,2]
[352993914,1739477455850,-500.0,0.00013863,2]
[352993915,1739477455859,-2310.54,0.00013863,2]
[352993916,1739477455867,-1068.57,0.00013863,2]
[352993917,1739477455877,-2284.6,0.00013863,2]
[352993918,1739477455886,-2529.06,0.00013863,2]
[352993919,1739477455895,-500.0,0.00013863,2]
[352993920,1739477455905,-1288.18,0.00013863,2]
[352993921,1739477455914,-500.0,0.00013863,2]
[352993922,1739477455923,-5450.16,0.00013863,2]
[352993923,1739477455932,-923.96,0.00013863,2]
[352993924,1739477455941,-4418.05,0.00013863,2]
[352993925,1739477455950,-2341.31,0.00013863,2]
[352993926,1739477455959,-500.0,0.00013863,2]
[352993927,1739477455968,-3659.39,0.00013863,2]
[352993928,1739477455977,-3587.5,0.00013863,2]
[352993929,1739477455988,-1090.59,0.00013863,2]
[352993930,1739477455997,-1776.48,0.00013863,2]
[352993931,1739477456007,-1247.59,0.00013863,2]
[352993932,1739477456016,-500.0,0.00013863,2]
[352993933,1739477456026,-2649.87,0.00013863,2]
[352993934,1739477456035,-2290.5,0.00013863,2]
[352993935,1739477456045,-936.62,0.00013863,2]
[352993936,1739477456055,-2390.29,0.00013863,2]
[352993937,1739477456065,-895.12,0.00013863,2]
[352993938,1739477456075,-267.41634732,0.00013863,2]
[352993939,1739477456085,-4157.3,0.00013863,2]
[352993940,1739477456095,-500.0,0.00013863,2]
[352993941,1739477456104,-1368.99,0.00013863,2]
[352993942,1739477456113,-1360.09,0.00013863,2]
[352993943,1739477456122,-500.0,0.00013863,2]
[352993944,1739477456132,-3287.97,0.00013863,2]
[352993945,1739477456141,-590.01,0.00013863,2]
[352993946,1739477456150,-3259.15,0.00013863,2]
[352993947,1739477456160,-3036.9,0.00013863,2]
[352993948,1739477456169,-577.61,0.00013863,2]
[352993949,1739477456178,-3574.42,0.00013863,2]
[352993950,1739477456188,-500.0,0.00013863,2]
[352993951,1739477456197,-784.99,0.00013863,2]
[352993952,1739477456206,-997.74,0.00013863,2]
[352993953,1739477456216,-500.0,0.00013863,2]
[352993954,1739477456225,-1781.09,0.00013863,2]
[352993955,1739477456235,-500.0,0.00013863,2]
[352993956,1739477456245,-2396.47,0.00013863,2]
[352993957,1739477456255,-3242.12018559,0.00013863,2]
[352993958,1739477460336,1105.53261285,0.00020865,60]
[352993959,1739477495328,282.501,8.973e-05,2]
[352993969,1739478308723,101554.82859021,0.0001,2]
[352993970,1739478480927,882078.11565838,0.0001,2]
[352993971,1739478496071,430.0,0.0002,120]
[352993982,1739478541747,440.5,0.0002,120]
[352993998,1739478631751,-240.34,0.00010137,2]
[352994000,1739478631760,-200.0,0.00010193,2]
[352994003,1739478632020,-150.0,0.00010248,2]
[352994004,1739478632041,-200.0,0.00010392,2]
[352994005,1739478632051,-305.75121867,0.00010582,2]
[352994006,1739478632062,-1061.60878133,0.00010582,2]
[352994007,1739478632072,-300.0,0.00010634,2]
[352994008,1739478632082,-8185.44385706,0.00010635,2]
[352994009,1739478632097,-959.3669999,0.00010635,2]
[352994010,1739478632128,-855.18914304,0.00010635,2]
[352994011,1739478632138,-150.0,0.00010635,2]
[352994012,1739478632148,-869.22019706,0.00011,2]
[352994014,1739478632158,-150.0,0.00011151,2]
[352994016,1739478632168,-200.0,0.00011151,2]
[352994018,1739478632177,-500.0,0.00011364,2]
[352994020,1739478632187,-500.0,0.00011364,2]
[352994022,1739478632196,-500.0,0.00011364,2]
[352994024,1739478632205,-420.0,0.0001169,2]
[352994026,1739478632215,-250.0,0.00012048,2]
[352994028,1739478632225,-1798.25,0.00012048,2]
[352994030,1739478632234,-1127.57,0.00012097,2]
[352994032,1739478632243,-4788.12835424,0.0001218,2]
[352994034,1739478632255,-19111.87164576,0.0001218,2]
[352994036,1739478632264,-1000.0,0.00012222,2]
[352994038,1739478632274,-1500.0,0.00012375,2]
[352994040,1739478632283,-2000.0,0.00012385,2]
[352994042,1739478632292,-150.0,0.00012416,2]
[352994044,1739478632301,-150.0,0.00012526,2]
[352994046,1739478632311,-150.0,0.00012526,2]
[352994048,1739478632320,-150.0,0.00012526,2]
[352994050,1739478632330,-150.0,0.00012653,2]
[352994052,1739478632340,-168.43,0.00012667,2]
[352994054,1739478632350,-1971.22,0.00012704,2]
[352994056,1739478632359,-395.12,0.00012704,2]
[352994059,1739478632369,-986.09,0.00012704,2]
[352994062,1739478632379,-304.23,0.00012704,2]
[352994065,1739478632389,-150.22,0.00012704,2]
[352994068,1739478632399,-150.0,0.00012726,2]
[352994070,1739478632408,-857.98,0.00012727,2]
[352994072,1739478632417,-159.41,0.00012729,2]
[352994074,1739478632426,-500.0,0.00012734,2]
[352994076,1739478632435,-500.0,0.00012734,2]
[352994078,1739478632445,-200.0,0.00012746,2]
[352994080,1739478632454,-150.0,0.00012779,2]
[352994082,1739478632464,-1367.36,0.00012846,2]
[352994084,1739478632473,-587.0,0.00012851,2]
[352994085,1739478632482,-150.0,0.00012906,2]
[352994086,1739478632491,-500.0,0.00012959,2]
[352994087,1739478632500,-954.92233312,0.00012968,2]
[352994088,1739478632509,-150.0,0.00012978,2]
[352994089,1739478632518,-550.0,0.00013,2]
[352994090,1739478632526,-500.0,0.00013014,2]
[352994091,1739478632535,-150.0,0.00013032,2]
[352994092,1739478632544,-5119.85509103,0.0001305,2]
[352994093,1739478632553,-150.0,0.00013159,2]
[352994094,1739478632561,-300.0,0.00013178,2]
[352994095,1739478632570,-8680.51330619,0.00013204,2]
[352994096,1739478632579,-178.32,0.00013236,2]
[352994097,1739478632588,-150.0,0.00013285,2]
[352994098,1739478632597,-250.0,0.00013394,2]
[352994099,1739478632606,-150.0,0.00013412,2]
[352994100,1739478632615,-431.95362761,0.00013443,2]
[352994101,1739478632624,-1033.57827242,0.00013504,2]
[352994102,1739478632634,-19078.79337532,0.00013521,2]
[352994104,1739478632645,-150.0,0.00013526,2]
[352994106,1739478632656,-878.71,0.00013526,2]
[352994109,1739478632666,-438.93,0.00013526,2]
[352994110,1739478632676,-300.66,0.00013526,2]
[352994113,1739478632686,-438.93,0.00013526,2]
[352994114,1739478632697,-150.0,0.00013526,2]
[352994116,1739478632707,-438.93,0.00013526,2]
[352994118,1739478632716,-300.0,0.00013526,2]
[352994121,1739478632726,-300.0,0.00013526,2]
[352994123,1739478632737,-204.03,0.00013526,2]
[352994125,1739478632746,-300.0,0.00013526,2]
[352994126,1739478632755,-150.0,0.00013526,2]
[352994129,1739478632765,-150.0,0.00013526,2]
[352994131,1739478632776,-300.0,0.00013526,2]
[352994132,1739478632786,-300.35,0.0001353,2]
[352994135,1739478632796,-150.0,0.0001353,2]
[352994136,1739478632806,-986.09,0.0001353,2]
[352994138,1739478632815,-150.0,0.0001353,2]
[352994140,1739478632825,-150.0,0.0001353,2]
[352994142,1739478632835,-150.0,0.0001353,2]
[352994144,1739478632844,-438.93,0.0001353,2]
[352994146,1739478632853,-438.93,0.0001353,2]
[352994148,1739478632862,-150.0,0.0001353,2]
[352994151,1739478632872,-438.93,0.0001353,2]
[352994153,1739478632883,-150.0,0.0001353,2]
[352994155,1739478632892,-150.0,0.0001353,2]
[352994157,1739478632901,-150.0,0.0001353,2]
[352994159,1739478632911,-150.0,0.0001353,2]
[352994161,1739478632920,-394.81,0.0001353,2]
[352994163,1739478632929,-150.0,0.00013538,2]
[352994165,1739478632939,-229.96,0.00013561,2]
[352994167,1739478632949,-161.20408657,0.00013598,2]
[352994169,1739478632959,-172.08305118,0.00013598,2]
[352994171,1739478632968,-172.08305105,0.00013613,2]
[352994173,1739478632979,-172.08305105,0.00013629,2]
[352994175,1739478632988,-172.08305105,0.00013644,2]
[352994177,1739478632998,-172.08305105,0.0001366,2]
[352994179,1739478633007,-150.0,0.00013665,2]
[352994181,1739478633016,-172.08305105,0.00013675,2]
[352994183,1739478633026,-185.41057111,0.0001368,2]
[352994185,1739478633035,-2805.149,0.0001368,2]
[352994187,1739478633044,-174.579,0.0001368,2]
[352994189,1739478633053,-210.93304077,0.0001368,2]
[352994190,1739478633063,-81.53155733,0.00013691,2]
[352994193,1739478633075,-90.55149372,0.00013691,2]
[352994195,1739478633085,-155.834979,0.00013698,2]
[352994197,1739478633096,-500.0,0.00013698,2]
[352994199,1739478633106,-1025.41,0.00013698,2]
[352994201,1739478633115,-1555.530027,0.00013698,2]
[352994203,1739478633125,-2448.765889,0.00013698,2]
[352994205,1739478633135,-156.888052,0.00013698,2]
[352994207,1739478633145,-500.0,0.00013698,2]
[352994209,1739478633155,-500.0,0.00013698,2]
[352994211,1739478633164,-1254.5,0.00013698,2]
[352994213,1739478633174,-782.63,0.00013698,2]
[352994215,1739478633183,-500.0,0.00013698,2]
[352994217,1739478633191,-500.0,0.00013698,2]
[352994219,1739478633199,-518.35,0.00013698,2]
[352994221,1739478633208,-564.62,0.00013698,2]
[352994223,1739478633216,-578.59,0.00013698,2]
[352994225,1739478633224,-500.0,0.00013698,2]
[352994227,1739478633232,-500.0,0.00013698,2]
[352994229,1739478633240,-646.44,0.00013698,2]
[352994231,1739478633249,-500.0,0.00013698,2]
[352994233,1739478633256,-500.0,0.00013698,2]
[352994235,1739478633266,-856.93,0.00013698,2]
[352994237,1739478633275,-744.91,0.00013698,2]
[352994239,1739478633283,-500.0,0.00013698,2]
[352994241,1739478633293,-500.0,0.00013698,2]
[352994243,1739478633303,-515.94,0.00013698,2]
[352994245,1739478633313,-500.0,0.00013698,2]
[352994247,1739478633323,-960.52,0.00013698,2]
[352994249,1739478633332,-779.23,0.00013698,2]
[352994251,1739478633343,-500.0,0.00013698,2]
[352994253,1739478633353,-500.0,0.00013698,2]
[352994255,1739478633362,-500.0,0.00013698,2]
[352994257,1739478633372,-509.44764735,0.00013698,2]
[352994259,1739478633381,-547.8,0.00013698,2]
[352994261,1739478633392,-500.0,0.00013698,2]
[352994263,1739478633402,-500.0,0.00013698,2]
[352994265,1739478633412,-657.07,0.00013698,2]
[352994267,1739478633422,-500.0,0.00013698,2]
[352994269,1739478633432,-500.0,0.00013698,2]
[352994271,1739478633441,-500.0,0.00013698,2]
[352994273,1739478633451,-500.0,0.00013698,2]
[352994275,1739478633461,-500.0,0.00013698,2]
[352994277,1739478633470,-767.16,0.00013698,2]
[352994279,1739478633480,-647.08,0.00013698,2]
[352994281,1739478633490,-1104.42,0.00013698,2]
[352994283,1739478633499,-500.76,0.00013698,2]
[352994285,1739478633509,-500.0,0.00013698,2]
[352994287,1739478633519,-500.0,0.00013698,2]
[352994289,1739478633528,-500.0,0.00013698,2]
[352994291,1739478633538,-500.0,0.00013698,2]
[352994293,1739478633547,-500.0,0.00013698,2]
[352994295,1739478633556,-526.69,0.00013698,2]
[352994297,1739478633565,-500.0,0.00013698,2]
[352994299,1739478633575,-500.0,0.00013698,2]
[352994301,1739478633585,-500.0,0.00013698,2]
[352994303,1739478633594,-275.52384623,0.00013698,2]
[352994305,1739478633604,-500.0,0.00013698,2]
[352994307,1739478633613,-500.0,0.00013698,2]
[352994309,1739478633623,-500.0,0.00013698,2]
[352994311,1739478633632,-500.0,0.00013698,2]
[352994313,1739478633641,-500.0,0.00013698,2]
[352994315,1739478633653,-500.84232981,0.00013698,2]
[352994317,1739478633663,-500.0,0.00013698,2]
[352994319,1739478633672,-611.77,0.00013698,2]
[352994321,1739478633682,-500.0,0.00013698,2]
[352994322,1739478633692,-717.3,0.00013698,2]
[352994324,1739478633702,-500.0,0.00013698,2]
[352994326,1739478633712,-500.0,0.00013698,2]
[352994328,1739478633722,-500.0,0.00013698,2]
[352994330,1739478633732,-782.13,0.00013698,2]
[352994332,1739478633742,-502.23192998,0.00013698,2]
[352994334,1739478633751,-500.0,0.00013698,2]
[352994336,1739478633761,-649.34,0.00013698,2]
[352994338,1739478633771,-772.83,0.00013698,2]
[352994340,1739478633781,-555.57,0.00013698,2]
[352994342,1739478633790,-500.0,0.00013698,2]
[352994344,1739478633800,-500.0,0.00013698,2]
[352994346,1739478633810,-500.0,0.00013698,2]
[352994348,1739478633819,-500.0,0.00013698,2]
[352994350,1739478633829,-504.68809972,0.00013698,2]
[352994352,1739478633839,-504.47496603,0.00013698,2]
[352994354,1739478633848,-500.0,0.00013698,2]
[352994356,1739478633859,-890.88,0.00013698,2]
[352994358,1739478633871,-500.0,0.00013698,2]
[352994360,1739478633881,-500.0,0.00013698,2]
[352994362,1739478633890,-500.0,0.00013698,2]
[352994364,1739478633900,-500.0,0.00013698,2]
[352994366,1739478633910,-1068.04,0.00013698,2]
[352994368,1739478633920,-500.0,0.00013698,2]
[352994370,1739478633929,-500.0,0.00013698,2]
[352994372,1739478633938,-500.0,0.00013698,2]
[352994374,1739478633948,-515.4,0.00013698,2]
[352994376,1739478633958,-500.0,0.00013698,2]
[352994378,1739478633967,-500.0,0.00013698,2]
[352994380,1739478633976,-687.7,0.00013698,2]
[352994382,1739478633986,-500.0,0.00013698,2]
[352994384,1739478633995,-500.0,0.00013698,2]
[352994386,1739478634005,-526.06,0.00013698,2]
[352994388,1739478634015,-500.0,0.00013698,2]
[352994390,1739478634025,-500.0,0.00013698,2]
[352994392,1739478634035,-764.58,0.00013698,2]
[352994394,1739478634044,-281.02,0.00013698,2]
[352994396,1739478634054,-500.0,0.00013698,2]
[352994398,1739478634064,-500.0,0.00013698,2]
[352994400,1739478634073,-2541.49,0.00013698,2]
[352994402,1739478634082,-500.0,0.00013698,2]
[352994404,1739478634092,-591.81,0.00013698,2]
[352994406,1739478634101,-498.31472875,0.00013698,2]
[352994408,1739478634110,-2188.04,0.00013698,2]
[352994409,1739478634119,-500.0,0.00013698,2]
[352994411,1739478634128,-500.0,0.00013698,2]
[352994414,1739478634139,-653.17,0.00013698,2]
[352994415,1739478634148,-500.0,0.00013698,2]
[352994417,1739478634157,-500.0,0.00013698,2]
[352994419,1739478634167,-500.0,0.00013698,2]
[352994421,1739478634177,-500.0,0.00013698,2]
[352994423,1739478634186,-241.84533419,0.00013698,2]
[352994425,1739478634196,-500.0,0.00013698,2]
[352994427,1739478634206,-500.0,0.00013698,2]
[352994429,1739478634215,-515.24,0.00013698,2]
[352994431,1739478634225,-500.0,0.00013698,2]
[352994433,1739478634234,-947.77,0.00013698,2]
[352994435,1739478634243,-809.97,0.00013698,2]
[352994437,1739478634253,-500.0,0.00013698,2]
[352994439,1739478634263,-500.0,0.00013698,2]
[352994441,1739478634273,-1315.36,0.00013698,2]
[352994443,1739478634283,-500.0,0.00013698,2]
[352994445,1739478634292,-2019.25,0.00013698,2]
[352994447,1739478634302,-726.78,0.00013698,2]
[352994449,1739478634311,-523.83,0.00013698,2]
[352994451,1739478634321,-500.0,0.00013698,2]
[352994453,1739478634331,-500.0,0.00013698,2]
[352994455,1739478634342,-500.0,0.00013698,2]
[352994457,1739478634352,-500.0,0.00013698,2]
[352994459,1739478634363,-669.64,0.00013698,2]
[352994461,1739478634373,-500.0,0.00013698,2]
[352994463,1739478634384,-1088.77,0.00013698,2]
[352994465,1739478634394,-1674.52,0.00013698,2]
[352994467,1739478634403,-500.0,0.00013698,2]
[352994469,1739478634413,-500.0,0.00013698,2]
[352994471,1739478634422,-500.0,0.00013698,2]
[352994473,1739478634432,-500.0,0.00013698,2]
[352994475,1739478634442,-500.0,0.00013698,2]
[352994477,1739478634451,-1618.56,0.00013698,2]
[352994479,1739478634462,-500.0,0.00013698,2]
[352994481,1739478634471,-566.00672339,0.00013698,2]
[352994483,1739478634481,-500.0,0.00013698,2]
[352994485,1739478634490,-500.0,0.00013698,2]
[352994487,1739478634499,-500.0,0.00013698,2]
[352994489,1739478634509,-1524.49,0.00013698,2]
[352994491,1739478634518,-500.0,0.00013698,2]
[352994493,1739478634529,-500.0,0.00013698,2]
[352994495,1739478634539,-1258.36,0.00013698,2]
[352994497,1739478634548,-500.0,0.00013698,2]
[352994499,1739478634558,-500.0,0.00013698,2]
[352994501,1739478634567,-959.61,0.00013698,2]
[352994503,1739478634576,-1031.91,0.00013698,2]
[352994505,1739478634586,-1192.76,0.00013698,2]
[352994507,1739478634595,-500.0,0.00013698,2]
[352994509,1739478634604,-500.0,0.00013698,2]
[352994511,1739478634614,-688.72,0.00013698,2]
[352994513,1739478634624,-500.0,0.00013698,2]
[352994515,1739478634633,-500.0,0.00013698,2]
[352994517,1739478634643,-656.26,0.00013698,2]
[352994519,1739478634654,-2001.42,0.00013698,2]
[352994521,1739478634667,-581.47,0.00013698,2]
[352994523,1739478634677,-500.0,0.00013698,2]
[352994525,1739478634687,-686.65,0.00013698,2]
[352994527,1739478634698,-696.63,0.00013698,2]
[352994529,1739478634708,-500.0,0.00013698,2]
[352994532,1739478634718,-1287.68,0.00013698,2]
[352994533,1739478634729,-500.0,0.00013698,2]
[352994535,1739478634739,-808.46,0.00013698,2]
[352994538,1739478634749,-500.0,0.00013698,2]
[352994539,1739478634759,-500.0,0.00013698,2]
[352994542,1739478634769,-954.27,0.00013698,2]
[352994543,1739478634779,-1381.72,0.00013698,2]
[352994546,1739478634793,-500.0,0.00013698,2]
[352994548,1739478634802,-683.41,0.00013698,2]
[352994550,1739478634812,-500.0,0.00013698,2]
[352994552,1739478634822,-686.86,0.00013698,2]
[352994554,1739478634832,-1898.82,0.00013698,2]
[352994556,1739478634841,-500.0,0.00013698,2]
[352994558,1739478634850,-500.0,0.00013698,2]
[352994560,1739478634859,-1479.16,0.00013698,2]
[352994562,1739478634869,-1044.72,0.00013698,2]
[352994564,1739478634879,-500.0,0.00013698,2]
[352994566,1739478634888,-981.54,0.00013698,2]
[352994568,1739478634898,-500.0,0.00013698,2]
[352994570,1739478634907,-1188.35,0.00013698,2]
[352994572,1739478634916,-1461.81,0.00013698,2]
[352994573,1739478634925,-901.14,0.00013698,2]
[352994575,1739478634934,-1701.42,0.00013698,2]
[352994577,1739478634944,-917.99,0.00013698,2]
[352994579,1739478634954,-500.0,0.00013698,2]
[352994582,1739478634964,-500.0,0.00013698,2]
[352994584,1739478634974,-1662.74,0.00013698,2]
[352994586,1739478634983,-500.0,0.00013698,2]
[352994588,1739478634993,-1563.14,0.00013698,2]
[352994590,1739478635002,-500.0,0.00013698,2]
[352994592,1739478635012,-1423.11,0.00013698,2]
[352994594,1739478635021,-504.76,0.00013698,2]
[352994596,1739478635031,-506.23,0.00013698,2]
[352994598,1739478635040,-500.0,0.00013698,2]
[352994600,1739478635049,-500.0,0.00013698,2]
[352994602,1739478635059,-1586.22,0.00013698,2]
[352994604,1739478635069,-500.0,0.00013698,2]
[352994606,1739478635079,-1796.95,0.00013698,2]
[352994608,1739478635088,-931.27,0.00013698,2]
[352994610,1739478635098,-516.26,0.00013698,2]
[352994612,1739478635107,-500.0,0.00013698,2]
[352994614,1739478635116,-851.01,0.00013698,2]
[352994616,1739478635125,-1034.2,0.00013698,2]
[352994618,1739478635134,-500.0,0.00013698,2]
[352994620,1739478635143,-958.76,0.00013698,2]
[352994622,1739478635152,-1129.07,0.00013698,2]
[352994623,1739478635161,-723.14,0.00013698,2]
[352994626,1739478635171,-1496.25,0.00013698,2]
[352994628,1739478635180,-906.23,0.00013698,2]
[352994631,1739478635190,-500.0,0.00013698,2]
[352994633,1739478635199,-822.52,0.00013698,2]
[352994634,1739478635208,-500.0,0.00013698,2]
[352994636,1739478635218,-687.66,0.00013698,2]
[352994638,1739478635228,-500.0,0.00013698,2]
[352994640,1739478635237,-850.45,0.00013698,2]
[352994642,1739478635246,-1370.21,0.00013698,2]
[352994644,1739478635255,-804.07,0.00013698,2]
[352994646,1739478635264,-998.27,0.00013698,2]
[352994648,1739478635273,-500.0,0.00013698,2]
[352994650,1739478635283,-500.0,0.00013698,2]
[352994652,1739478635291,-500.0,0.00013698,2]
[352994654,1739478635301,-500.0,0.00013698,2]
[352994656,1739478635310,-925.27,0.00013698,2]
[352994658,1739478635319,-500.0,0.00013698,2]
[352994660,1739478635329,-171.72439758,0.00013698,2]
[352994662,1739478635338,-2151.4,0.00013698,2]
[352994664,1739478635347,-500.0,0.00013698,2]
[352994666,1739478635355,-204.17849051,0.00013698,2]
[352994668,1739478635364,-1744.08,0.00013698,2]
[352994670,1739478635374,-500.0,0.00013698,2]
[352994672,1739478635383,-769.0,0.00013698,2]
[352994674,1739478635392,-861.65,0.00013698,2]
[352994676,1739478635402,-500.0,0.00013698,2]
[352994678,1739478635411,-1425.89,0.00013698,2]
[352994680,1739478635420,-1408.92,0.00013698,2]
[352994682,1739478635431,-500.0,0.00013698,2]